Cogmind - Beta 14 @@@ ROGUE MODE // 2024.09.20 @ 00:42:02 Player: Omega Result: Destroyed by P-60 Hacker with Shock Rifle Performance ------------- Evolutions (2) 1000 Regions Visited (6) 1200 Robots Destroyed (31) 155 Value Destroyed (891) 891 Prototype IDs (10) 200 Alien Tech Used (0) 0 Bonus (658) 658 TOTAL SCORE: 4104 Bonus ------- Follower Combat Kills 177 Entered Garrisons 200 Aligned with FarCom 300 Friendly Fire -19 Cogmind --------- Core Integrity 0/550 Matter 227/300 Energy 100/100 System Corruption 19% Temperature Cool (0) Movement Core (50) Location -8/Garrison Parts ------- > --- POWER (2) -------- (None) > --- PROPULSION (3) --- (None) > --- UTILITY (4) ------ Modified TNC > --- WEAPON (2) ------- (None) > --- INVENTORY (5) ---- Relay Coupler [Duelist] (28) Peak State ------------ > --- POWER ------------ Ion Engine Light Angular Momentum Engine > --- PROPULSION ------- Aluminum Leg Carbon-fiber Leg Carbon-fiber Leg > --- UTILITY ---------- Improved Sensor Array Experimental Sensor Array Modified TNC Hardened Medium Armor Plating > --- WEAPON ----------- Lightning Gun Heavy Particle Gun > --- INVENTORY -------- Aluminum Leg Heavy EM Shotgun Lightning Gun Lightning Gun Lightning Gun [Rating: 43] Favorites ----------- Power Ion Engine Engine Ion Engine Propulsion Aluminum Leg Leg Aluminum Leg Utility Light Armor Plating Device Experimental Sensor Array Storage Small Storage Unit Processor Modified TNC Protection Light Armor Plating Weapon Assault Rifle Energy Gun Heavy Particle Gun Ballistic Gun Assault Rifle Launcher Rocket Launcher Build | -11 -10 -10 -10 -9 -8 -8 ------- Run | Yrd Mat Min Exi Min Mat Gar Slots Evolved 4 | . . . . . 4 . Power 1 | . . . . . 1 . Propulsion 1 | . . . . . 1 . Utility 2 | . . . . . 2 . Weapon . | . . . . . . . Parts Attached 44 | 7 9 4 3 . 13 8 Power 4 | 1 . . . . 2 1 Engine 4 | 1 . . . . 2 1 Core . | . . . . . . . Reactor . | . . . . . . . Propulsion 10 | 2 3 1 . . 3 1 Treads . | . . . . . . . Leg 10 | 2 3 1 . . 3 1 Wheel . | . . . . . . . Hover . | . . . . . . . Flight . | . . . . . . . Utility 18 | 2 4 2 3 . 5 2 Device 9 | 1 1 1 2 . 3 1 Storage 1 | 1 . . . . . . Processor 2 | . . . 1 . 1 . Hackware . | . . . . . . . Protection 6 | . 3 1 . . 1 1 Artifact . | . . . . . . . Weapon 12 | 2 2 1 . . 3 4 Energy Gun 8 | 1 . . . . 3 4 Energy Cannon . | . . . . . . . Ballistic Gun 3 | 1 2 . . . . . Ballistic Cannon . | . . . . . . . Launcher 1 | . . 1 . . . . Special Weapon . | . . . . . . . Impact Weapon . | . . . . . . . Slashing Weapon . | . . . . . . . Piercing Weapon . | . . . . . . . Special Melee Weapon . | . . . . . . . Unidentified Prototypes 6 | . . 1 3 . 1 1 Corrupted Parts 1 | . . . . . . 1 System Corruption 2 | . . . . . . 2 Parts Lost 16 | . . . . . 2 14 Power 3 | . . . . . . 3 Propulsion 2 | . . . . . . 2 Utility 5 | . . . . . 2 3 Weapon 6 | . . . . . . 6 Highest Loss Streak 14 | . . . . . 2 14 To Critical Strikes . | . . . . . . . Average Slot Usage (%) 97 | . 98 100 99 100 96 84 Engine 14 | . 14 14 14 14 18 14 Leg 27 | . 27 28 28 28 27 22 Device 6 | . 1 7 9 . 14 15 Processor 7 | . . . 4 14 14 9 Protection 14 | . 25 20 14 14 3 7 Energy Gun 5 | . 6 . . . 14 15 Ballistic Gun 12 | . 21 17 14 14 1 . Launcher 7 | . . 10 14 14 1 . Peak Build Rating 43 | 7 7 16 17 14 43 43 Average Rating 17 | 5 6 11 15 14 34 31 On Entrance 14 | . 7 7 16 14 14 43 Naked Turns . | . . . . . . . Heaviest Build 31 | 15 15 15 15 14 31 31 Greatest Support 40 | 20 20 20 20 20 40 40 Greatest Overweight (x) 2 | 2 . 1 . . . 2 Average Overweight (x) . | . . . . . . . Largest Inventory Capacity 8 | 8 8 5 5 5 5 5 Average Capacity 5 | 7 5 5 5 5 5 5 Most Carried 5 | 4 5 5 5 5 5 5 Average Carried 4 | 2 4 5 4 5 4 4 Final Capacity 8 | 8 5 5 5 5 5 5 Final Carried 5 | 4 5 5 5 5 5 1 Class Distribution -------------------- 74% | Mutant 14% | Scavenger-Skirmisher 11% | Skirmisher Dominant Class ---------------- Mutant | -10/Materials Mutant | -10/Mines Mutant | -10/Exiles Mutant | -9/Mines Skirmisher | -8/Materials Scavenger-Skirmisher | -8/Garrison Resources | -11 -10 -10 -10 -9 -8 -8 ----------- Run | Yrd Mat Min Exi Min Mat Gar Matter Collected 934 | 297 172 99 . 81 266 19 Remotely . | . . . . . . . Salvage Created 1280 | 172 346 111 . . 531 120 Parts 63 | 10 20 6 . . 16 11 Haulers Intercepted 5 | . 2 . . . 3 . Recyclers Shooed 2 | . 1 1 . . . . Parts Field Recycled . | . . . . . . . Retrieved Matter . | . . . . . . . Parts Self-Destructed . | . . . . . . . Prevented . | . . . . . . . Kills | -11 -10 -10 -10 -9 -8 -8 ------- Run | Yrd Mat Min Exi Min Mat Gar Combat Hostiles Destroyed 19 | . 7 3 . . 7 2 Guns 15 | . 7 3 . . 3 2 Classes Destroyed 10 | 3 4 . . . 3 . Worker 1 | 1 . . . . . . Tunneler 2 | 2 . . . . . . Hauler 5 | . 2 . . . 3 . Recycler 2 | 1 . 1 . . . . Watcher 2 | . 1 . . . 1 . Swarmer 6 | . 3 3 . . . . Grunt 7 | . 4 . . . 3 . Brawler 1 | . . . . . 1 . Duelist 1 | . . . . . 1 . Sentry 4 | . . . . . 2 2 Best Kill Streak 4 | 4 3 3 . . 2 1 Combat Bots Only 3 | . 3 3 . . 2 1 Max Kills in Single Turn 2 | 1 1 2 . . 1 1 Gunslinging 1 | . . 1 . . . . Exploded . | . . . . . . . Melee . | . . . . . . . Uniques/NPCs Destroyed . | . . . . . . . Combat | -11 -10 -10 -10 -9 -8 -8 -------- Run | Yrd Mat Min Exi Min Mat Gar Hostile Shots Fired 202 | . 24 5 . . 42 131 Missed 57 | . 12 . . . 15 30 Damage Taken 2296 | . 129 42 . . 603 1522 Core 601 | . 31 9 . . 97 464 Absorbed by Shields . | . . . . . . . Regen/Repaired (Parts) 53 | . 53 . . . . . Core Remaining (%) 92 | 100 . . . 84 . . Volleys Fired 115 | 9 22 12 . 5 42 25 Largest 2 | 2 2 2 . 1 2 2 Hottest 110 | 60 60 53 . 33 110 110 Shots Fired 203 | 18 44 16 . 5 76 44 Gun 196 | 18 44 14 . . 76 44 Cannon . | . . . . . . . Launcher 7 | . . 2 . 5 . . Special . | . . . . . . . Kinetic 59 | 9 29 14 . . 7 . Thermal 88 | . . . . . 69 19 Explosive 7 | . . 2 . 5 . . Electromagnetic 49 | 9 15 . . . . 25 Robot Hit Streak 11 | 4 11 4 . . 8 4 Robot Miss Streak 5 | 4 5 5 . . 3 4 Penetration Max . | . . . . . . . Secondary Targets 3 | . 2 1 . . . . Max Gunslinging Chain 1 | . 1 1 . . . . Shots Hit Robots 119 | 7 31 6 . . 52 23 Core Hits 48 | 5 14 7 . . 12 10 Critical Kills . | . . . . . . . Critical Parts Destroyed 1 | . 1 . . . . . Critical Strikes 7 | . 1 . . . 5 1 Burn 6 | . . . . . 5 1 Destroy 1 | . 1 . . . . . Melee Attacks . | . . . . . . . Impact . | . . . . . . . Slashing . | . . . . . . . Piercing . | . . . . . . . Sneak Attacks . | . . . . . . . Combat Hostiles . | . . . . . . . Follow-up Attacks . | . . . . . . . Damage Inflicted 2005 | 134 418 165 . 3 1027 258 Guns 1882 | 134 380 88 . . 1022 258 Cannons . | . . . . . . . Explosions 111 | . 34 77 . . . . Melee . | . . . . . . . Ramming 12 | . 4 . . 3 5 . Kinetic 402 | 38 215 88 . . 61 . Thermal 1142 | . 34 . . . 961 147 Explosive 77 | . . 77 . . . . Electromagnetic 372 | 96 165 . . . . 111 Impact . | . . . . . . . Slashing . | . . . . . . . Piercing . | . . . . . . . Highest Corruption 18 | . . . . . 4 18 Average Corruption 5 | . . . . . 4 5 Corruption Purged . | . . . . . . . Corruption Blocked . | . . . . . . . Effects 12 | . . . . . 5 7 Message Errors 2 | . . . . . . 2 Matter Fused 3 | . . . . . 2 1 Heat Flow Errors 1 | . . . . . . 1 Parts Fused 1 | . . . . . . 1 Data Loss (minor) 3 | . . . . . 1 2 Data Loss (major) 1 | . . . . . 1 . Weapon Failures 1 | . . . . . 1 . Overload Shots . | . . . . . . . Overflow Damage . | . . . . . . . Projectiles . | . . . . . . . Explosions . | . . . . . . . Melee . | . . . . . . . Knockbacks . | . . . . . . . Impact . | . . . . . . . Kinetic . | . . . . . . . Secondary . | . . . . . . . Self-Inflicted Damage 6 | . 6 . . . . . Shots 1 | . 1 . . . . . Rammed . | . . . . . . . Targets Rammed 4 | . 1 . . 1 2 . Kicked 4 | . 1 . . 1 2 . Crushed . | . . . . . . . Highest Temperature 561 | . 75 9 . . 561 424 Average Temperature 135 | . 26 9 . . 146 180 Received Heat Transfer 228 | . 45 9 . . 138 36 Effects 15 | . . . . . 14 1 Shutdowns 3 | . . . . . 3 . Energy Bleed 1 | . . . . . 1 . Interference 4 | . . . . . 4 . Matter Decay 4 | . . . . . 3 1 Damage (major) 3 | . . . . . 3 . Siege Activations . | . . . . . . . Robots Corrupted . | . . . . . . . Combat Hostiles . | . . . . . . . Parts Fried . | . . . . . . . Impact Corruptions . | . . . . . . . Robots Melted 5 | . . . . . 5 . Combat Hostiles 4 | . . . . . 4 . Parts Melted 2 | . . . . . 2 . Heat Transferred 2603 | . 50 . . . 2220 333 Parts Sabotaged . | . . . . . . . Parts Stolen . | . . . . . . . Parts Stripped . | . . . . . . . Power Chain Reactions 1 | . 1 . . . . . Alert | -11 -10 -10 -10 -9 -8 -8 ------- Run | Yrd Mat Min Exi Min Mat Gar Peak Influence 234 | 20 223 97 . 20 234 184 Initial 64 | . 13 22 . . . 64 Average 56 | 4 67 57 . 3 92 126 Maximum Alert Level 1 | . 1 . . . 1 . Low Security (%) 96 | 100 90 100 . 100 91 100 Level 1 3 | . 9 . . . 8 . Level 2 . | . . . . . . . Level 3 . | . . . . . . . Level 4 . | . . . . . . . Level 5 . | . . . . . . . High Security . | . . . . . . . Max Security . | . . . . . . . Squads Dispatched 9 | . 4 . . 1 4 . Investigation 3 | . 3 . . . . . Extermination . | . . . . . . . Reinforcement 2 | . 1 . . . 1 . Assault 1 | . . . . 1 . . Garrison 3 | . . . . . 3 . Intercept . | . . . . . . . Searches Triggered . | . . . . . . . Construction Impeded . | . . . . . . . Haulers Reinforced . | . . . . . . . Active Scanning Responses . | . . . . . . . Cargo Convoy Interrupts . | . . . . . . . Stealth | -11 -10 -10 -10 -9 -8 -8 --------- Run | Yrd Mat Min Exi Min Mat Gar Distress Signals 3 | . . . . . 3 . Communications Jammed . | . . . . . . . Distress Signals . | . . . . . . . Times Spotted 41 | . 11 4 . . 21 5 Peak Tracking Total 4 | . 4 2 . . 4 4 Tactical Retreats 4 | . . . . . 3 1 Traps | -11 -10 -10 -10 -9 -8 -8 ------- Run | Yrd Mat Min Exi Min Mat Gar Traps Triggered 3 | . 1 . . . . 2 Indirectly . | . . . . . . . Trap Hack Attempts . | . . . . . . . Triggered . | . . . . . . . Disarmed . | . . . . . . . Reprogrammed . | . . . . . . . Reused . | . . . . . . . Traps Extracted . | . . . . . . . Installed . | . . . . . . . Triggered . | . . . . . . . Machines | -11 -10 -10 -10 -9 -8 -8 ---------- Run | Yrd Mat Min Exi Min Mat Gar Machines Disabled 2 | . . . . . 1 1 Max in Single Turn 1 | . . . . . 1 1 Garrison Relay 1 | . . . . . . 1 Machines Repaired . | . . . . . . . Machines Dismantled . | . . . . . . . Machines Sabotaged . | . . . . . . . Overloaded Fab Kills . | . . . . . . . Hacking | -11 -10 -10 -10 -9 -8 -8 --------- Run | Yrd Mat Min Exi Min Mat Gar Machines Accessed 16 | . 7 . 4 . 4 1 Terminals 9 | . 5 . . . 3 1 Fabricators . | . . . . . . . Repair Stations 1 | . 1 . . . . . Recycling Units 1 | . 1 . . . . . Scanalyzers . | . . . . . . . Garrison Access 1 | . . . . . 1 . Total Hacks 109 | . 35 . 49 . 22 3 Successful 89 | . 24 . 49 . 16 . Failed 20 | . 11 . . . 6 3 Catastrophic . | . . . . . . . Database Lockouts . | . . . . . . . Manual 39 | . 19 . 1 . 19 . Terminals 40 | . 19 . . . 18 3 Fabricators . | . . . . . . . Repair Stations 10 | . 10 . . . . . Recycling Units 6 | . 6 . . . . . Scanalyzers . | . . . . . . . Garrison Access 4 | . . . . . 4 . Terminal Hacks 55 | . 4 . 49 . 2 . Record 50 | . 1 . 49 . . . Prototype ID Bank 2 | . 1 . . . 1 . Emergency Access Points 1 | . 1 . . . . . Locate Traps 1 | . . . . . 1 . Zone Layout 1 | . 1 . . . . . Fabricator Hacks . | . . . . . . . Repair Station Hacks 7 | . 7 . . . . . Scan Component 4 | . 4 . . . . . Repair 3 | . 3 . . . . . Recycling Unit Hacks 2 | . 2 . . . . . Report Inventory 1 | . 1 . . . . . Retrieve Components 1 | . 1 . . . . . Scanalyzer . | . . . . . . . Garrison Access Hacks 1 | . . . . . 1 . Unlock Access 1 | . . . . . 1 . Unauthorized Hacks 24 | . 11 . . . 13 . Terminals 17 | . 6 . . . 11 . Track 5 | . 2 . . . 3 . Assimilate 3 | . 1 . . . 2 . Botnet 4 | . 1 . . . 3 . Disrupt 2 | . 1 . . . 1 . Operators 2 | . 1 . . . 1 . Skim 1 | . . . . . 1 . Fabricators . | . . . . . . . Repair Stations 1 | . 1 . . . . . Mechanics 1 | . 1 . . . . . Recycling Units 4 | . 4 . . . . . Monitor 1 | . 1 . . . . . Reject 1 | . 1 . . . . . Recyclers 1 | . 1 . . . . . Mask 1 | . 1 . . . . . Scanalyzers . | . . . . . . . Garrison Access 2 | . . . . . 2 . Restock 1 | . . . . . 1 . Decoy 1 | . . . . . 1 . Data Cores Recovered . | . . . . . . . Used . | . . . . . . . Hacking Detections 11 | . 6 . . . 4 1 Full Trace Events 2 | . 2 . . . . . Feedback Events . | . . . . . . . Feedback Blocked . | . . . . . . . Robot Schematics Acquired . | . . . . . . . Robots Built . | . . . . . . . Authchips . | . . . . . . . Time . | . . . . . . . Total Robot Build Rating . | . . . . . . . Part Schematics Acquired . | . . . . . . . Parts Built . | . . . . . . . Authchips . | . . . . . . . Time . | . . . . . . . Total Part Build Rating . | . . . . . . . Parts Repaired 3 | . 3 . . . . . Time 78 | . 78 . . . . . Parts Recycled . | . . . . . . . Recycled Matter . | . . . . . . . Retrieved Matter . | . . . . . . . Retrieved Components 9 | . 9 . . . . . Parts Scanalyzed . | . . . . . . . Part Schematics Acquired . | . . . . . . . Parts Damaged . | . . . . . . . Bothacking | -11 -10 -10 -10 -9 -8 -8 ------------ Run | Yrd Mat Min Exi Min Mat Gar Used RIF Installer . | . . . . . . . Robots Hacked . | . . . . . . . Non-combat . | . . . . . . . Combat . | . . . . . . . Robot Hacks Applied . | . . . . . . . Relay Couplers Released 4 | . . . . . . 4 Machine Destruction 4 | . . . . . . 4 Fabnet Peak Effective % . | . . . . . . . Robots Rewired . | . . . . . . . Allies Hacked . | . . . . . . . Hacks Repelled . | . . . . . . . Allies | -11 -10 -10 -10 -9 -8 -8 -------- Run | Yrd Mat Min Exi Min Mat Gar Total Allies 5 | . . 4 . 1 . . Largest Group 4 | . . 3 3 4 4 . Highest-Rated Group 71 | . . 40 40 71 71 . Highest-Rated Ally 31 | . . 31 16 31 31 . Total Orders . | . . . . . . . Ally Attacks 44 | . . 4 . . 40 . Total Damage 497 | . . 63 . . 434 . Kills 8 | . . 2 . . 6 . Allies Corrupted . | . . . . . . . Allies Melted . | . . . . . . . Intel | -11 -10 -10 -10 -9 -8 -8 ------- Run | Yrd Mat Min Exi Min Mat Gar Robot Analysis Total . | . . . . . . . Derelict Logs Recovered 4 | . . 1 . 3 . . Drone Launches . | . . . . . . . Drone Recoveries . | . . . . . . . Exploration | -11 -10 -10 -10 -9 -8 -8 ------------- Run | Yrd Mat Min Exi Min Mat Gar Turns Passed 4650 | 118 787 838 513 1141 898 355 Spaces Moved 2918 | 65 418 664 419 612 556 184 Core 10 | 7 . . . . . 3 Treads . | . . . . . . . Legs 2908 | 58 418 664 419 612 556 181 Wheels . | . . . . . . . Hover . | . . . . . . . Flight . | . . . . . . . Fastest Speed 50 | 50 120 120 120 120 120 50 Average Speed 119 | 118 120 120 120 120 120 119 Slowest Speed 190 | 190 120 190 120 120 120 150 Overloaded Moves . | . . . . . . . Propulsion Burnouts . | . . . . . . . Robots Hopped . | . . . . . . . Cave-ins Triggered . | . . . . . . . Exploration Rate (%) 56 | 4 47 99 73 95 48 31 Regions Visited 6 Branch Regions 3 Pre-discovered Areas 2 | . . . 1 1 . . Known Exits Taken 1 | . . . . . 1 . Unknown Exits Taken 5 | 1 1 1 1 1 . . Scrap Searched 4 | . . 2 . 2 . . Spaces Dug 54 | . . . . 54 . . Terrain Destroyed 70 | . 3 13 . 54 . . Melee . | . . . . . . . Projectile . | . . . . . . . AOE 70 | . 3 13 . 54 . . Terrain Rammed . | . . . . . . . Walls Destroyed . | . . . . . . . Machines Disabled . | . . . . . . . Actions | -11 -10 -10 -10 -9 -8 -8 --------- Run | Yrd Mat Min Exi Min Mat Gar Total 3858 | 84 659 688 431 1013 708 275 Wait 724 | . 195 5 . 396 82 46 Move 2912 | 64 417 663 418 611 556 183 Hop . | . . . . . . . Pick Up 20 | 4 5 . 5 . 5 1 Fast Attach 30 | 7 7 4 . . 9 3 Attach 12 | . . . 3 . 4 5 Detach 1 | . 1 . . . . . Swap 2 | . 2 . . . . . Drop 28 | . 9 4 5 . 8 2 Fire 115 | 9 22 12 . 5 42 25 Melee . | . . . . . . . Ram . | . . . . . . . Kick 4 | . 1 . . 1 2 . Crush . | . . . . . . . Escape Stasis 10 | . . . . . . 10 Rewire . | . . . . . . . Trap . | . . . . . . . Miscellaneous . | . . . . . . . Route ------- -11/Scrapyard -10/Materials (discovered 2 exits: [*Mat] / [*Min]) -10/Mines (discovered 4 exits: [*Mat x2] / *Exi / Sub) -10/Exiles (discovered 2 exits: [*Min x2]) -9/Mines (discovered 2 exits: *Mat x2) -8/Materials -8/Garrison (discovered 1 exit: [*Fac]) History --------- Turn | Location | Event 26 | -11/Scrapyard | Discovered new exit (range 14) 119 | -11/Scrapyard | Entered Materials 303 | -10/Materials | Build established: Mutant 510 | -10/Materials | Discovered new exit (range 13) 687 | -10/Materials | Repaired Aluminum Leg 715 | -10/Materials | Repaired Lgt. Armor Plating 742 | -10/Materials | Repaired Aluminum Leg 885 | -10/Materials | Discovered new exit (range 14) 906 | -10/Materials | Entered Mines 1064 | -10/Mines | Discovered new exit (range 7) 1095 | -10/Mines | Received a Rocket Launcher from a helpful Derelict 1247 | -10/Mines | Discovered new exit (range 8) 1283 | -10/Mines | Identified exit to Subcaves 1313 | -10/Mines | Found a damaged Exp. Sensor Array with a note attached 1319 | -10/Mines | Found Prototype Device 1319 | -10/Mines | Identified Exp. Sensor Array 1420 | -10/Mines | Received a Mining Laser from a helpful Derelict 1638 | -10/Mines | Deemed a non-threat by the Exiles lab entrance 1638 | -10/Mines | Discovered new exit (range 5) 1679 | -10/Mines | Assisted by bots powering up and referring to "LRC-V3" 1744 | -10/Mines | Entered Exiles 1744 | -10/Exiles | Accompanied by 3 allies 1762 | -10/Exiles | Discovered new exit (range 15) 1778 | -10/Exiles | Met 8R-AWN 1800 | -10/Exiles | Met EX-HEX 1857 | -10/Exiles | Met EX-DEC 1935 | -10/Exiles | Met EX-BIN 2041 | -10/Exiles | Aligned with FarCom system 2042 | -10/Exiles | Given EX-Vault access code 2070 | -10/Exiles | Opened EX-Vault 2075 | -10/Exiles | Found Prototype Device 2077 | -10/Exiles | Identified Supersonic Drone Bay 2081 | -10/Exiles | Found Prototype Device 2088 | -10/Exiles | Identified Skeleton Box 2093 | -10/Exiles | Found Prototype Processor 2094 | -10/Exiles | Identified Modified TNC 2126 | -10/Exiles | Warned to stay clear of 0b10 Research branches 2180 | -10/Exiles | Learned location of Zion (-6) 2242 | -10/Exiles | Discovered new exit (range 14) 2257 | -10/Exiles | Left Exiles lab with Modified TNC 2257 | -10/Exiles | Entered Mines 2257 | -9/Mines | Accompanied by 3 allies 2258 | -9/Mines | Met a Derelict testing a Signal Generator 2978 | -9/Mines | Discovered new exit (range 9) 3002 | -9/Mines | Found a hidden stash of uninstalled traps 3044 | -9/Mines | Learned Materials terminal intel 3349 | -9/Mines | Discovered new exit (range 15) 3398 | -9/Mines | Entered Materials 3398 | -8/Materials | Accompanied by 4 allies 3398 | -8/Materials | Evolved 4 slots: Power x1, Propulsion x1, Utility x2 3399 | -8/Materials | Loaded intel: 12 terminal locations 3696 | -8/Materials | Build established: Skirmisher 3921 | -8/Materials | Garrison activated, responded to threat 4242 | -8/Materials | Build established: Scavenger-Skirmisher 4296 | -8/Materials | Identified exit to Garrison 4296 | -8/Materials | Entered Garrison 4330 | -8/Garrison | Triggered checkpoint 4344 | -8/Garrison | Garrison Relay disabled 4398 | -8/Garrison | Triggered checkpoint 4463 | -8/Garrison | Discovered new exit (range 9) 4499 | -8/Garrison | Attempted to access garrison exit controls, blocked by remote lockdown 4536 | -8/Garrison | Triggered checkpoint 4592 | -8/Garrison | System corruption reached 10% 4622 | -8/Garrison | Core integrity fell below 50% 4643 | -8/Garrison | Core integrity fell below 20% 4651 | -8/Garrison | Destroyed by P-60 Hacker with Shock Rifle Last Messages --------------- rejected. Complication: Carbon-fiber Leg rejected. Hvy. EM Shotgun destroyed. Heat Sink destroyed. Aluminum Leg destroyed. OFIFHC&>ZMQF3Q>MG F=Q:N9V,Y:C Imp. Sensor Array destroyed. Imp. Ion Engine destroyed. P-60 Hacker resets P-60 Hacker, system corruption cleaned. Lightning Gun destroyed. >&ON/Y#NAHXL>2N M47VQG4HP2KC6LA P-60 Hacker resets P-60 Hacker, system corruption cleaned. Lightning Gun destroyed. Acquired Hrd. Medium Armor Plating. P-60 Hacker resets P-60 Hacker, system corruption cleaned. Hrd. Medium Armor Plating destroyed. System corrupted: Matter fused (-7). Map ----- +----------------------------------------------------+ | ?????????????????????????????????????????????????? | | ?????????????????????????????????????????????????? | | ?????????????????????????????????????????????????? | | ?????????????????????????????????????????????????? | | ?????????????????????????#####???????????????????? | | ?????????????????????????# #???????????????????? | | ?????????????????######### < #???????????????????? | | ?????????????????# #???????????????????? | | ?????????????????# #???????????????????? | | ?????????????????# ##########???????????????????? | | ?????????????????# #????????????????????????????? | | ?????????????????# #????????????????????????????? | | ?????????????????# #????????????????????????????? | | ?????????????????# #????????????????????????????? | | ?????????????????# #????????????????????????????? | | ?????????????????# #????????????????????????????? | | ?????????????????# #????????????????????????????? | | ?????????????????#^ #????????????????????????????? | | ?????????????????# #????????????????????????????? | | ??????############ #????????????????????????????? | | ??????# #????????????????????????????? | | ??????# #????????????????????????????? | | ??????# ######### #????????????????????????????? | | ??????# ????????# Y#????????????????????????????? | | ??????# ????????# #########!##### ??????? | | ??????# #???????# p @ =p!! ??????? | | ??????# #???????# ################?????????????? | | ??????# #???????# #????????????????????????????? | | #""""## ##??????# #????????????????????????????? | | ######## #????????????????????????????? | | #????????????????????????????? | | #????????????????????????????? | | # ## ###########????????????????????????????? | | # ## ###????????????????????????????????????? | | #????????????????????????????????????? | | !#????????????????????????????????????? | | !%=#????????????????????????????????????? | | [[ #????????????????????????????????????? | | # ## ###????????????????????????????????????? | | # ## ############???????????????????????????? | | #???????????????????????????? | | #???????????????????????????? | | #???????????????????????????? | | #""""############# #???????????????????????????? | | ?????????????????# #???????????????????????????? | | ?????????????????# #???????????????????????????? | | ?????????????????# #???????????????????????????? | | ?????????????????# ######??#######?????????????? | | ?????????????????# ## #??#""= "#?????????????? | | ?????????????????# ## ##### !!###????????????? | +----------------------------------------------------+ Best States ------------- Heat Dissipation 41 Energy Generation 23 Energy Capacity 400 Matter Stores 300 Matter Capacity 300 Sight Range 16 Robot Scan Range 20 Terrain Scan Density 10 Armor Coverage 225 Power Shielding 33 Evasion (%) 55 Targeting Accuracy 6 Recoil Reduction 4 Item Schematics ----------------- None Robot Schematics ------------------ None Fabricated ------------ Nothing Alien Tech Used ----------------- None Achievements -------------- root@ Challenges ------------ None Game ------ Seed MiniTiamatTelecube Manual? 0 Play Time 01:08:33 Cumulative 11.3 hours Start 2024.09.19 @ 23:00:05 End 2024.09.20 @ 00:42:02 Sessions 1 Manual Loads 0 Difficulty Rogue Special Mode None Game No. 12 Rogue 12 Adventurer 0 Explorer 0 Win Type - Total 0 Types 0/0/0/0/0/0/0/0/0 Lore% 10 Gallery% 18 Achievement% 16 Wizard Run 0 Options --------- Layout 1 ASCII 0 Keyboard 0 Movement Mouse Keybinds 0 Fullscreen 1 Font 24/Smallcaps Map View 50x35 Zoom Use 0% Tactical HUD 0 Map Filters NONE Filters NONE Steam 1 RUN: 92ed38a0-ec49-4fbf-b291-53bee1520ee6